{"text_format":"1","workbook":"xlsx","n_sheets":2,"sheets":["Teilnehmer","Spielplan"],"not_rendered":{"charts":0,"images":0,"macros":1,"external_links":0,"defined_names":0,"comments":0,"pivot_tables":0},"unopened":[],"bounds":{"document_bytes":16777216,"sheet_cells":100000,"rows_first":2000,"rows_last":500,"rows_between":2000,"halvings":0,"cell_chars":16384,"cell_head_chars":4096},"cells_cut":0,"cells_raw":0,"read":"whole","date_system":"1900"}

{"sheet":"Teilnehmer","index":0,"n_rows":17,"n_cols":1,"rows_kept":17,"cut":false,"hidden":false,"merged":[]}
[]
["Gruppe A"]
["Name 1"]
["Name 2"]
["Name 3"]
[]
[]
["Gruppe B"]
["Name 1"]
["Name 2"]
["Name 3"]
[]
[]
["Gruppe C"]
["Name 1"]
["Name 2"]
["Name 3"]

{"sheet":"Spielplan","index":1,"n_rows":112,"n_cols":22,"rows_kept":112,"cut":false,"hidden":false,"merged":[[1,4,1,5],[93,4,93,5],[0,2,0,5],[92,2,92,5],[0,8,0,11],[1,2,1,3],[93,2,93,3],[1,8,1,9],[1,10,1,11]]}
[null,null,"Spielfeld 1",null,null,null,null,null,"Spielfeld 2"]
[null,null,"Begegnungen",null,"Ergegnis",null,null,null,"Begegnungen",null,"Ergegnis",null,null,null,null,"Teilnehmer",null,null,null,"Name A","Name B","entfällt!"]
[null,"Ansetzung","Anwurf",null,null,null,null,"Ansetzung","Anwurf",null,null,null,null,null,null,"A1",null,null,null,"spielfrei: -->","C3"]
[null,1,"Gruppe A Name 1","Gruppe C Name 1",0,1,null,1,"Gruppe B Name 1","Gruppe A Name 2",0,1,null,null,null,"A2",null,null,null,"A1","C2",{"$f":"LEFT(T4,1)=LEFT(U4,1)","v":false}]
[null,2,"Gruppe A Name 3","Gruppe B Name 2",0,1,null,2,"Gruppe B Name 3","Gruppe C Name 3",0,1,null,null,null,"A3",null,null,null,"A2","C1",{"$f":"LEFT(T5,1)=LEFT(U5,1)","v":false}]
[null,3,"Gruppe C Name 3","Gruppe A Name 1",1,0,null,3,"Gruppe C Name 1","Gruppe B Name 1",1,0,null,null,null,"B1",null,null,null,"A3","B3",false]
[null,4,"Gruppe A Name 2","Gruppe B Name 2",0,1,null,4,"Gruppe A Name 3","Gruppe B Name 3",0,1,null,null,null,"B2",null,null,null,"B1","B2",true]
[null,5,"Gruppe C Name 3","Gruppe A Name 1",0,1,null,5,"Gruppe B Name 1","Gruppe A Name 3",0,1,null,null,null,"B3",null,null,null,"spielfrei: -->","C2"]
[null,6,"Gruppe B Name 3","Gruppe A Name 2",1,0,null,6,"Gruppe B Name 2","Gruppe C Name 3",0,1,null,null,null,"C1",null,null,null,"C3","C1",{"$f":"LEFT(T9,1)=LEFT(U9,1)","v":true}]
[null,7,"Gruppe C Name 2","Gruppe B Name 1",1,0,null,7,"Gruppe C Name 1","Gruppe A Name 3",1,0,null,null,null,"C2",null,null,null,"A1","B3",false]
[null,8,"Gruppe B Name2","Gruppe C Name 2",0,1,null,8,"Gruppe B Name 3","Gruppe A Name 1",1,0,null,null,null,"C3",null,null,null,"A2","B2",false]
[null,9,"Gruppe C Name 1","Gruppe B Name 3",0,1,null,9,"Gruppe A Name 1","Gruppe B Name 2",0,1,null,null,null,null,null,null,null,"A3","B1",false]
[null,10,"Gruppe A Name 2","Gruppe C Name 3",1,0,null,10,"Gruppe A Name 3","Gruppe C Name 2",1,0,null,null,null,null,null,null,null,"spielfrei: -->","C1"]
[null,11,"Gruppe B Name 2","Gruppe A Name 1",1,0,null,11,"Gruppe C Name 1","Gruppe A Name 2",1,0,null,null,"Anleitung:",null,null,null,null,"C2","B3",{"$f":"LEFT(T14,1)=LEFT(U14,1)","v":false}]
[null,12,"Gruppe B Name 2","Gruppe C Name 1",0,1,null,12,"Gruppe A Name 3","Gruppe C Name 3",0,1,null,null,"Teilnehmer (grün_1) mit Maus markieren!",null,null,null,null,"C3","B2",false]
[null,13,"Gruppe A Name 2","Gruppe B Name 1",0,1,null,13,"Gruppe C Name 2","Gruppe B Name 3",0,1,null,null,"Erstes Ausgabefeld bei gedrückter Taste",null,null,null,null,"A1","B1",false]
[null,14,"Gruppe C Name 3","Gruppe B Name 1",1,0,null,14,"Gruppe C Name 1","Gruppe A Name 1",1,0,null,null,"\"Strg\" (grün_2) ebenfalls markieren!",null,null,null,null,"A2","A3",true]
[null,15,"Gruppe A Name 2","Gruppe C Name 2",1,0,null,15,"Gruppe B Name 2","Gruppe A Name 3",1,0,null,null,"Darauf achten, dass nach rechts und nach",null,null,null,null,"spielfrei: -->","B3"]
[null,16,"Gruppe B Name 3","Gruppe A Name 3",1,0,null,16,"Gruppe A Name 1","Gruppe C Name 3",1,0,null,null,"unten genügend Platz für die Ausgabe ist!",null,null,null,null,"C1","B2",false]
[null,17,"Gruppe B Name 1","Gruppe C Name 1",0,1,null,17,"Gruppe B Name 2","Gruppe A Name 2",0,1,null,null,"Makro starten!",null,null,null,null,"C2","B1",false]
[null,18,"Gruppe C Name 3","Gruppe B Name 3",0,1,null,18,"Gruppe A Name 1","Gruppe C Name 2",0,1,null,null,"Je Runde das Spiel gegen ein Teammitglied ",null,null,null,null,"C3","A3",false]
[null,19,"Gruppe A Name 3","Gruppe B Name 1",0,1,null,19,"Gruppe A Name 2","Gruppe B Name 3",0,1,null,null,"im Bsp. \"wahr\" löschen/entfernen!",null,null,null,null,"A1","A2",true]
[null,20,"Gruppe C Name 3","Gruppe B Name 2",1,0,null,20,"Gruppe B Name 1","Gruppe C Name 2",1,0,null,null,null,null,null,null,null,"spielfrei: -->","B2"]
[null,21,"Gruppe A Name 3","Gruppe C Name 3",0,1,null,21,"Gruppe C Name 2","Gruppe B Name 2",0,1,null,null,"Hinrunde: 9 Runden/Spieltage",null,null,null,null,"B3","B1",true]
[null,22,"Gruppe A Name 1","Gruppe B Name 3",1,0,null,22,"Gruppe C Name 3","Gruppe A Name 2",1,0,null,null,"Bsp.: Wer spielt auf welcher Scheibe?",null,null,null,null,"C1","A3",false]
[null,23,"Gruppe C Name 2","Gruppe A Name 3",0,1,null,23,"Gruppe B Name 3","Gruppe C Name 1",0,1,null,null,"ungerage Runde auf Scheibe 1",null,null,null,null,"C2","A2",false]
[null,24,"Gruppe B Name 1","Gruppe A Name 1",1,0,null,24,"Gruppe C Name 1","Gruppe B Name 2",1,0,null,null,"gerade Runde auf Scheibe 2",null,null,null,null,"C3","A1",false]
[null,25,"Gruppe C Name 3","Gruppe A Name 3",0,1,null,25,"Gruppe C Name 2","Gruppe A Name 2",0,1,null,null,"Rückrunde: umgekehrt",null,null,null,null,"spielfrei: -->","B1"]
[null,26,"Gruppe A Name 2","Gruppe C Name 3",1,0,null,26,"Gruppe B Name 1","Gruppe C Name 3",1,0,null,null,null,null,null,null,null,"B2","A3",false]
[null,27,"Gruppe B Name 3","Gruppe C Name 2",0,1,null,27,"Gruppe A Name 1","Gruppe B Name 2",0,1,null,null,null,null,null,null,null,"B3","A2",false]
[null,null,null,null,null,null,null,null,null,null,null,null,null,null,null,null,null,null,null,"C1","A1",false]
[null,null,null,null,null,null,null,null,null,null,null,null,null,null,null,null,null,null,null,"C2","C3",true]
[null,null,null,null,null,null,null,null,null,null,null,null,null,null,null,null,null,null,null,"spielfrei: -->","A3"]
[null,"Gruppe","Teilnehmer","Summe","E","F",null,null,null,null,"K","L",null,null,null,null,null,null,null,"B1","A2",false]
[null,{"$f":"LEFT(C35,8)","v":"Gruppe A"},"Gruppe A Name 1",{"$f":"SUM(E35:L35)","v":3},{"$f":"SUMIF($C$4:$C$30,C35,$E$4:$E$30)","v":1},{"$f":"SUMIF($D$4:$D$30,C35,$F$4:$F$30)","v":1},null,null,null,null,{"$f":"SUMIF($I$4:$I$30,C35,$K$4:$K$30)","v":1},{"$f":"SUMIF($J$4:$J$30,C35,$L$4:$L$30)","v":0},null,null,null,null,null,null,null,"B2","A1",false]
[null,{"$f":"LEFT(C36,8)","v":"Gruppe A"},"Gruppe A Name 2",{"$f":"SUM(E36:L36)","v":6},{"$f":"SUMIF($C$4:$C$30,C36,$E$4:$E$30)","v":3},{"$f":"SUMIF($D$4:$D$30,C36,$F$4:$F$30)","v":0},null,null,null,null,{"$f":"SUMIF($I$4:$I$30,C36,$K$4:$K$30)","v":0},{"$f":"SUMIF($J$4:$J$30,C36,$L$4:$L$30)","v":3},null,null,null,null,null,null,null,"B3","C3",false]
[null,"Gruppe A","Gruppe A Name 3",4,0,2,null,null,null,null,1,1,null,null,null,null,null,null,null,"C1","C2",true]
[null,"Gruppe B","Gruppe B Name 1",5,1,2,null,null,null,null,2,0,null,null,null,null,null,null,null,"spielfrei: -->","A2"]
[null,"Gruppe B","Gruppe B Name 2",7,1,2,null,null,null,null,1,3,null,null,null,null,null,null,null,"A3","A1",true]
[null,"Gruppe B","Gruppe B Name 3",8,2,2,null,null,null,null,1,3,null,null,null,null,null,null,null,"B1","C3",false]
[null,"Gruppe C","Gruppe C Name 1",9,0,3,null,null,null,null,5,1,null,null,null,null,null,null,null,"B2","C2",false]
[null,"Gruppe C","Gruppe C Name 2",4,1,2,null,null,null,null,0,1,null,null,null,null,null,null,null,"B3","C1",false]
[null,"Gruppe C","Gruppe C Name 3",8,3,1,null,null,null,null,1,3,null,null,null,null,null,null,null,"spielfrei: -->","A1"]
[null,null,null,null,null,null,null,null,null,null,null,null,null,null,null,null,null,null,null,"A2","C3",false]
[null,null,null,null,null,null,null,null,null,null,null,null,null,null,null,null,null,null,null,"A3","C2",false]
[null,"Platz","Gruppe","Punkte",null,null,null,null,null,null,null,null,null,null,null,null,null,null,null,"B1","C1",false]
[null,{"$f":"_xlfn.RANK.EQ(D47, $D$47:$D$49)","v":3},"Gruppe A",{"$f":"SUMIF($B$35:$B$43, C47, $D$35:$D$43)","v":13},null,null,null,null,null,null,null,null,null,null,null,null,null,null,null,"B2","B3",true]
[null,{"$f":"_xlfn.RANK.EQ(D48, $D$47:$D$49)","v":2},"Gruppe B",{"$f":"SUMIF($B$35:$B$43, C48, $D$35:$D$43)","v":20}]
[null,1,"Gruppe C",21]
[]
[]
[]
[]
[]
[]
[]
[]
[]
[]
[]
[]
[]
[]
[]
[]
[]
[]
[]
[]
[]
[]
[]
[]
[]
[]
[]
[]
[]
[]
[]
[]
[]
[]
[]
[]
[]
[]
[]
[]
[]
[]
[]
[null,null,"Spielfeld 2"]
[null,null,"              Begegnungen Hinrunde",null,"Ergegnis"]
[null,null,"Gruppe C Name 1","Gruppe A Name 1",0,1]
[null,null,"Gruppe B Name 2","Gruppe A Name 3",0,1]
[null,null,"?","?"]
[null,null,"?","?"]
[null,null,"?","?"]
[null,null,"?","?"]
[null,null,"?","?"]
[null,null,"?","?"]
[null,null,"?","?"]
[null,null,"?","?"]
[null,null,"?","?"]
[null,null,"?","?"]
[null,null,"?","?"]
[null,null,"?","?"]
[null,null,"?","?"]
[null,null,"?","?"]
[null,null,"?","?"]
[null,null,"?","?"]